lending/lending_fUSD_20240124
["ID","MTS","AMOUNT","RATE_DAILY","PERIOD"]
[312641024,1706122358076,-500.0,0.00050958,31]
[312641025,1706122358085,-500.0,0.00050958,31]
[312641026,1706122358094,-731.18,0.00050958,31]
[312641027,1706122358103,-1207.08,0.00050958,31]
[312641028,1706122358113,-1174.69,0.00050958,31]
[312641029,1706122358122,-500.0,0.00050958,31]
[312641030,1706122358131,-2581.31,0.00050958,31]
[312641031,1706122358142,-740.71,0.00050958,31]
[312641032,1706122358151,-1329.41,0.00050958,31]
[312641033,1706122358160,-1378.41,0.00050958,31]
[312641034,1706122358169,-950.0,0.00050958,7]
[312641035,1706122358179,-545.75,0.00050958,31]
[312641036,1706122358188,-500.0,0.00050958,31]
[312641037,1706122358198,-1309.93,0.00050958,31]
[312641038,1706122358207,-500.0,0.00050958,31]
[312641039,1706122358217,-500.0,0.00050958,31]
[312641040,1706122358226,-973.63,0.00050958,31]
[312641041,1706122358235,-500.0,0.00050958,31]
[312641042,1706122358244,-500.0,0.00050958,31]
[312641043,1706122358254,-1370.14,0.00050958,31]
[312641044,1706122358264,-500.0,0.00050958,31]
[312641045,1706122358273,-500.0,0.00050958,31]
[312641046,1706122358282,-500.0,0.00050958,31]
[312641047,1706122358292,-500.0,0.00050958,31]
[312641048,1706122358301,-625.5,0.00050958,31]
[312641049,1706122358313,-561.88,0.00050958,31]
[312641050,1706122358323,-500.0,0.00050958,31]
[312641051,1706122358332,-500.0,0.00050958,31]
[312641052,1706122358342,-500.0,0.00050958,31]
[312641053,1706122358353,-1086.56,0.00050958,31]
[312641054,1706122358363,-1202.1,0.00050958,31]
[312641055,1706122358372,-4191.4,0.00050958,31]
[312641056,1706122358383,-1256.89,0.00050958,31]
[312641057,1706122358392,-500.0,0.00050958,31]
[312641058,1706122358401,-712.36,0.00050958,31]
[312641059,1706122358412,-1151.56,0.00050958,31]
[312641060,1706122358421,-593.19,0.00050958,31]
[312641061,1706122358430,-500.0,0.00050958,31]
[312641062,1706122358440,-1249.41,0.00050958,31]
[312641063,1706122358449,-500.0,0.00050958,31]
[312641064,1706122358458,-500.0,0.00050958,31]
[312641065,1706122358468,-500.0,0.00050958,31]
[312641066,1706122358478,-500.0,0.00050958,31]
[312641067,1706122358487,-500.0,0.00050958,31]
[312641068,1706122358496,-1307.18,0.00050958,31]
[312641069,1706122358505,-795.62,0.00050958,31]
[312641070,1706122358514,-500.0,0.00050958,31]
[312641071,1706122358524,-749.12,0.00050958,31]
[312641072,1706122358533,-696.33,0.00050958,31]
[312641073,1706122358542,-500.0,0.00050958,31]
[312641074,1706122358552,-500.0,0.00050958,14]
[312641075,1706122358562,-500.0,0.00050958,31]
[312641076,1706122358572,-1284.18,0.00050958,31]
[312641077,1706122358582,-652.98,0.00050958,31]
[312641078,1706122358591,-981.53,0.00050958,31]
[312641079,1706122358601,-523.2,0.00050958,31]
[312641080,1706122358611,-648.47,0.00050958,31]
[312641081,1706122358620,-510.01,0.00050958,31]
[312641082,1706122358629,-609.97,0.00050958,31]
[312641083,1706122358639,-668.31,0.00050958,31]
[312641084,1706122358649,-982.27,0.00050958,31]
[312641085,1706122358659,-1472.4,0.00050958,31]
[312641086,1706122358668,-500.0,0.00050958,31]
[312641087,1706122358678,-500.0,0.00050958,31]
[312641088,1706122358688,-500.0,0.00050958,31]
[312641089,1706122358697,-1275.47,0.00050958,20]
[312641090,1706122358706,-975.67,0.00050958,31]
[312641091,1706122358716,-859.46,0.00050958,31]
[312641092,1706122358726,-500.0,0.00050958,31]
[312641093,1706122358735,-2167.45,0.00050958,31]
[312641094,1706122358744,-500.0,0.00050958,31]
[312641095,1706122358754,-500.0,0.00050958,31]
[312641096,1706122358763,-666.0,0.00050958,31]
[312641097,1706122358773,-1089.95,0.00050958,31]
[312641098,1706122358782,-641.64,0.00050958,31]
[312641099,1706122358792,-924.64,0.00050958,31]
[312641100,1706122358802,-500.0,0.00050958,31]
[312641101,1706122358812,-1430.01,0.00050958,31]
[312641102,1706122358821,-536.15,0.00050958,31]
[312641103,1706122358831,-589.35,0.00050958,31]
[312641104,1706122358841,-500.0,0.00050958,31]
[312641105,1706122358850,-6481.22,0.00050958,31]
[312641106,1706122358860,-1129.08,0.00050958,31]
[312641107,1706122358870,-1564.68,0.00050958,31]
[312641108,1706122358880,-944.64,0.00050958,31]
[312641109,1706122358889,-500.0,0.00050958,31]
[312641110,1706122358899,-500.0,0.00050958,31]
[312641111,1706122358909,-500.0,0.00050958,31]
[312641112,1706122358918,-500.0,0.00050958,30]
[312641113,1706122358928,-1816.2,0.00050958,31]
[312641114,1706122358938,-500.0,0.00050958,31]
[312641115,1706122358948,-887.53,0.00050958,31]
[312641116,1706122358957,-1137.33,0.00050958,31]
[312641117,1706122358967,-677.18,0.00050958,31]
[312641118,1706122358977,-1033.79,0.00050958,31]
[312641119,1706122358986,-952.51,0.00050958,31]
[312641120,1706122358997,-750.26,0.00050958,31]
[312641121,1706122359006,-500.0,0.00050958,7]
[312641122,1706122359016,-500.0,0.00050958,31]
[312641123,1706122359026,-551.65014818,0.00050958,31]
[312641124,1706122359035,-616.97,0.00050958,31]
[312641125,1706122359045,-500.0,0.00050958,31]
[312641126,1706122359054,-1156.88,0.00050958,31]
[312641127,1706122359064,-575.07,0.00050958,31]
[312641128,1706122359073,-523.29712183,0.00050958,31]
[312641129,1706122359083,-7701.48,0.00050958,15]
[312641130,1706122359092,-500.0,0.00050958,31]
[312641131,1706122359102,-508.6,0.00050958,31]
[312641132,1706122359111,-500.0,0.00050958,31]
[312641133,1706122359121,-571.75,0.00050958,31]
[312641134,1706122359131,-588.05,0.00050958,31]
[312641135,1706122359141,-500.0,0.00050958,31]
[312641136,1706122359151,-828.94,0.00050958,31]
[312641137,1706122359160,-500.0,0.00050958,31]
[312641138,1706122359170,-532.52,0.00050958,31]
[312641139,1706122359180,-537.19796901,0.00050958,31]
[312641140,1706122359189,-1048.36,0.00050958,31]
[312641141,1706122359199,-732.05,0.00050958,31]
[312641142,1706122359208,-500.0,0.00050958,31]
[312641143,1706122359218,-952.74,0.00050958,31]
[312641144,1706122359228,-1176.12,0.00050958,31]
[312641145,1706122359237,-500.0,0.00050958,31]
[312641146,1706122359247,-1417.3,0.00050958,2]
[312641147,1706122359257,-1220.83,0.00050958,31]
[312641148,1706122359266,-921.3,0.00050958,31]
[312641149,1706122359275,-500.0,0.00050958,31]
[312641150,1706122359286,-897.04,0.00050958,31]
[312641151,1706122359300,-5880.03,0.00050958,31]
[312641152,1706122359310,-1858.89,0.00050958,31]
[312641153,1706122359319,-500.0,0.00050958,31]
[312641154,1706122359329,-500.0,0.00050958,31]
[312641155,1706122359339,-550.81,0.00050958,31]
[312641156,1706122359349,-500.0,0.00050958,31]
[312641157,1706122359360,-500.0,0.00050958,31]
[312641158,1706122359369,-1157.35,0.00050958,31]
[312641159,1706122359379,-739.19,0.00050958,31]
[312641160,1706122359391,-889.14,0.00050958,31]
[312641161,1706122359401,-500.0,0.00050958,31]
[312641162,1706122359411,-1017.77,0.00050958,31]
[312641163,1706122359420,-500.0,0.00050958,31]
[312641164,1706122359429,-899.45,0.00050958,31]
[312641165,1706122359439,-1542.77,0.00050958,31]
[312641166,1706122359448,-1135.37,0.00050958,31]
[312641167,1706122359458,-502.38,0.00050958,31]
[312641168,1706122359468,-1208.25,0.00050958,31]
[312641169,1706122359477,-300.0,0.0005097,7]
[312641170,1706122359487,-250.0,0.0005097,7]
[312641171,1706122359497,-201.31092489,0.0005097,7]
[312641172,1706122359509,-3000.0,0.00051,7]
[312641173,1706122359518,-197.54753319,0.00051,30]
[312641174,1706122359527,-1200.6951837,0.00051,30]
[312641175,1706122359537,-10000.0,0.00051,14]
[312641176,1706122359546,-559.0,0.00051,30]
[312641177,1706122359555,-4799.66698014,0.00051,4]
[312641178,1706122359565,-40232.57995146,0.00051,4]
[312641179,1706122359575,-23979.18562796,0.00051,30]
[312641180,1706122359584,-237.62,0.00051,2]
[312641181,1706122359593,-3334.77704055,0.00051,4]
[312641182,1706122359602,-383.81392376,0.00051,30]
[312641183,1706122359613,-2224.31586078,0.00051,15]
[312641184,1706122359622,-1205.65725877,0.00051,4]
[312641185,1706122359632,-100000.0,0.00051,30]
[312641186,1706122359641,-207.0,0.00051,30]
[312641187,1706122359651,-201.0,0.00051,30]
[312641188,1706122359661,-150.0,0.00051,2]
[312641189,1706122359670,-208.0,0.00051,30]
[312641190,1706122359680,-238.0,0.00051,30]
[312641191,1706122359690,-213.0,0.00051,30]
[312641192,1706122359700,-185.0,0.00051,2]
[312641193,1706122359709,-300.0,0.00051,29]
[312641194,1706122359719,-1100.0,0.00051,3]
[312641195,1706122359729,-150.0,0.00051,2]
[312641196,1706122359739,-175.29904524,0.00051,30]
[312641197,1706122359749,-226.68219845,0.00051,30]
[312641198,1706122359760,-196.6956687,0.00051,30]
[312641199,1706122359769,-163.16983851,0.00051,30]
[312641200,1706122359779,-200.0,0.00051,29]
[312641201,1706122359789,-293.82634424,0.00051,30]
[312641202,1706122359799,-198.45088449,0.00051,30]
[312641203,1706122359808,-264.62033872,0.00051,30]
[312641204,1706122359818,-224.82666094,0.00051,30]
[312641205,1706122359828,-2110.0,0.00051,15]
[312641206,1706122359838,-500.0,0.00051144,14]
[312641207,1706122359847,-5000.0,0.00051164,6]
[312641208,1706122359858,-1499.0,0.0005119,2]
[312641209,1706122359868,-697.53,0.00051232,31]
[312641210,1706122359878,-632.99,0.00051232,31]
[312641211,1706122359888,-500.0,0.00051232,31]
[312641212,1706122359898,-500.0,0.00051232,31]
[312641213,1706122359907,-500.0,0.00051232,31]
[312641214,1706122359917,-536.56028146,0.00051232,31]
[312641215,1706122359927,-500.0,0.00051232,31]
[312641216,1706122359937,-513.26,0.00051232,31]
[312641217,1706122359947,-500.0,0.00051232,31]
[312641218,1706122359956,-312.70120347,0.00051232,31]
[312641219,1706122359966,-532.8,0.00051232,31]
[312641220,1706122359975,-500.0,0.00051232,31]
[312641221,1706122359985,-500.0,0.00051232,31]
[312641222,1706122359995,-500.0,0.00051232,31]
[312641223,1706122360005,-500.0,0.00051232,31]
[312641224,1706122360014,-500.0,0.00051232,31]
[312641225,1706122360023,-500.0,0.00051232,31]
[312641226,1706122360033,-944.33,0.00051232,31]
[312641227,1706122360043,-510.31,0.00051232,31]
[312641228,1706122360053,-500.0,0.00051232,31]
[312641229,1706122360062,-500.0,0.00051232,31]
[312641230,1706122360072,-500.0,0.00051232,31]
[312641231,1706122360081,-500.0,0.00051232,31]
[312641232,1706122360091,-500.0,0.00051232,31]
[312641233,1706122360101,-500.0,0.00051232,31]
[312641234,1706122360111,-715.29,0.00051232,31]
[312641235,1706122360120,-500.0,0.00051232,31]
[312641236,1706122360130,-500.0,0.00051232,31]
[312641237,1706122360140,-1227.94,0.00051232,31]
[312641238,1706122360150,-572.94,0.00051232,31]
[312641239,1706122360159,-518.75,0.00051232,31]
[312641240,1706122360168,-500.0,0.00051232,31]
[312641241,1706122360178,-500.0,0.00051232,31]
[312641242,1706122360187,-666.04,0.00051232,31]
[312641243,1706122360197,-500.0,0.00051232,31]
[312641244,1706122360208,-626.84,0.00051232,31]
[312641245,1706122360218,-500.0,0.00051232,31]
[312641246,1706122360228,-557.55,0.00051232,31]
[312641247,1706122360237,-500.0,0.00051232,31]
[312641248,1706122360247,-500.0,0.00051232,31]
[312641249,1706122360257,-500.0,0.00051232,31]
[312641250,1706122360267,-521.21,0.00051232,31]
[312641251,1706122360276,-500.0,0.00051232,31]
[312641252,1706122360286,-500.0,0.00051232,31]
[312641253,1706122360297,-500.0,0.00051232,31]
[312641254,1706122360308,-561.44819685,0.00051232,31]
[312641255,1706122360319,-522.02,0.00051232,31]
[312641256,1706122360329,-557.31,0.00051232,31]
[312641257,1706122360338,-500.0,0.00051232,31]
[312641258,1706122360350,-500.0,0.00051232,31]
[312641259,1706122360361,-500.0,0.00051232,31]
[312641260,1706122360370,-500.0,0.00051232,31]
[312641261,1706122360380,-500.0,0.00051232,31]
[312641262,1706122360389,-500.0,0.00051232,31]
[312641263,1706122360399,-590.01834419,0.00051232,31]
[312641264,1706122360409,-500.0,0.00051232,31]
[312641265,1706122360419,-500.0,0.00051232,20]
[312641266,1706122360429,-500.0,0.00051232,31]
[312641267,1706122360439,-666.6,0.00051232,31]
[312641268,1706122360449,-504.07,0.00051232,31]
[312641269,1706122360459,-500.0,0.00051232,31]
[312641270,1706122360468,-501.83927966,0.00051232,31]
[312641271,1706122360478,-1870.62,0.00051232,2]
[312641272,1706122360488,-500.0,0.00051232,31]
[312641273,1706122360498,-500.0,0.00051232,10]
[312641274,1706122360507,-610.32,0.00051232,31]
[312641275,1706122360517,-636.71,0.00051232,31]
[312641276,1706122360526,-516.63,0.00051232,31]
[312641277,1706122360536,-588.07,0.00051232,31]
[312641278,1706122360545,-565.0,0.00051232,31]
[312641279,1706122360556,-661.88,0.00051232,31]
[312641280,1706122360565,-500.0,0.00051232,31]
[312641281,1706122360575,-670.77,0.00051232,31]
[312641282,1706122360585,-500.0,0.00051232,31]
[312641283,1706122360595,-500.0,0.00051232,31]
[312641284,1706122360605,-500.0,0.00051232,31]
[312641285,1706122360615,-500.0,0.00051232,31]
[312641286,1706122360625,-500.0,0.00051232,31]
[312641287,1706122360635,-500.0,0.00051232,31]
[312641288,1706122360644,-500.0,0.00051232,31]
[312641289,1706122360654,-500.0,0.00051232,31]
[312641290,1706122360664,-500.0,0.00051232,31]
[312641291,1706122360674,-588.69,0.00051232,31]
[312641292,1706122360684,-540.50157203,0.00051232,31]
[312641293,1706122360694,-500.0,0.00051232,31]
[312641294,1706122360704,-500.0,0.00051232,31]
[312641295,1706122360714,-500.0,0.00051232,31]
[312641296,1706122360724,-500.0,0.00051232,31]
[312641297,1706122360733,-500.0,0.00051232,31]
[312641298,1706122360743,-500.0,0.00051232,31]
[312641299,1706122360754,-500.0,0.00051232,31]
[312641300,1706122360764,-505.02,0.00051232,31]
[312641301,1706122360774,-500.0,0.00051232,31]
[312641302,1706122360784,-500.0,0.00051232,31]
[312641303,1706122360793,-500.0,0.00051232,31]
[312641304,1706122360803,-500.0,0.00051232,31]
[312641305,1706122360813,-500.0,0.00051232,31]
[312641306,1706122360823,-598.88,0.00051232,31]
[312641307,1706122360833,-610.34,0.00051232,31]
[312641308,1706122360843,-500.0,0.00051232,31]
[312641309,1706122360852,-500.0,0.00051232,31]
[312641310,1706122360862,-500.0,0.00051232,31]
[312641311,1706122360872,-500.0,0.00051232,31]
[312641312,1706122360881,-500.0,0.00051232,31]
[312641313,1706122360891,-500.0,0.00051232,31]
[312641314,1706122360901,-500.0,0.00051232,31]
[312641315,1706122360911,-500.0,0.00051232,31]
[312641316,1706122360921,-500.0,0.00051232,31]
[312641317,1706122360932,-840.37,0.00051232,31]
[312641318,1706122360942,-500.0,0.00051232,31]
[312641319,1706122360951,-576.14,0.00051232,31]
[312641320,1706122360961,-500.0,0.00051232,31]
[312641321,1706122360970,-614.84,0.00051232,31]
[312641322,1706122360980,-500.0,0.00051232,31]
[312641323,1706122360989,-500.0,0.00051232,31]
[312641324,1706122360999,-500.0,0.00051232,31]
[312641325,1706122361009,-500.0,0.00051232,31]
[312641326,1706122361019,-699.16,0.00051232,31]
[312641327,1706122361029,-500.0,0.00051232,31]
[312641328,1706122361038,-602.98,0.00051232,31]
[312641329,1706122361049,-500.0,0.00051232,31]
[312641330,1706122361059,-1209.78,0.00051232,31]
[312641331,1706122361070,-500.0,0.00051232,31]
[312641332,1706122361080,-500.0,0.00051232,31]
[312641333,1706122361327,-500.0,0.00051232,31]
[312641334,1706122361337,-526.93,0.00051232,31]
[312641335,1706122361349,-669.92,0.00051232,31]
[312641336,1706122361359,-500.0,0.00051232,31]
[312641337,1706122361368,-196.36269065,0.00051232,31]
[312641338,1706122361379,-681.96,0.00051232,31]
[312641339,1706122361389,-500.0,0.00051232,31]
[312641340,1706122361400,-1093.09,0.00051232,31]
[312641341,1706122361409,-505.89,0.00051232,31]
[312641342,1706122361419,-504.26,0.00051232,31]
[312641343,1706122361429,-576.3,0.00051232,31]
[312641344,1706122361438,-683.41,0.00051232,31]
[312641345,1706122361447,-500.0,0.00051232,31]
[312641346,1706122361457,-861.51,0.00051232,31]
[312641347,1706122361467,-531.92,0.00051232,31]
[312641348,1706122361476,-500.0,0.00051232,31]
[312641349,1706122361486,-1129.85,0.00051232,2]
[312641350,1706122361495,-500.0,0.00051232,31]
[312641351,1706122361504,-500.0,0.00051232,31]
[312641352,1706122361513,-523.21,0.00051232,31]
[312641353,1706122361523,-554.22,0.00051232,31]
[312641354,1706122361533,-500.0,0.00051232,31]
[312641355,1706122361543,-501.22,0.00051232,31]
[312641356,1706122361552,-538.61,0.00051232,31]
[312641357,1706122361561,-562.279466,0.00051232,31]
[312641358,1706122361571,-748.72,0.00051232,31]
[312641359,1706122361580,-598.83,0.00051232,31]
[312641360,1706122361590,-909.89,0.00051232,14]
[312641361,1706122361599,-500.0,0.00051232,31]
[312641362,1706122361610,-960.56,0.00051232,31]
[312641363,1706122361623,-830.24,0.00051232,31]
[312641364,1706122361632,-895.7,0.00051232,31]
[312641365,1706122361641,-500.0,0.00051232,31]
[312641366,1706122361650,-545.66,0.00051232,31]
[312641367,1706122361660,-500.0,0.00051232,31]
[312641368,1706122361669,-1002.31,0.00051232,31]
[312641369,1706122361678,-1055.98,0.00051232,31]
[312641370,1706122361687,-500.0,0.00051232,31]
[312641371,1706122361697,-675.47,0.00051232,31]
[312641372,1706122361707,-1008.99,0.00051232,31]
[312641373,1706122361716,-500.0,0.00051232,31]
[312641374,1706122361726,-500.0,0.00051232,31]
[312641375,1706122361735,-697.41,0.00051232,31]
[312641376,1706122361745,-737.45,0.00051232,31]
[312641377,1706122361755,-733.37,0.00051232,31]
[312641378,1706122361764,-500.0,0.00051232,31]
[312641379,1706122361774,-909.31,0.00051232,31]
[312641380,1706122361784,-500.0,0.00051232,31]
[312641381,1706122361793,-506.83,0.00051232,31]
[312641382,1706122361804,-874.13,0.00051232,31]
[312641383,1706122361813,-703.21,0.00051232,31]
[312641384,1706122361823,-500.0,0.00051232,31]
[312641385,1706122361832,-500.0,0.00051232,31]
[312641386,1706122361842,-968.85,0.00051232,31]
[312641387,1706122361852,-733.08,0.00051232,31]
[312641388,1706122361862,-500.0,0.00051232,31]
[312641389,1706122361871,-1263.86,0.00051232,31]
[312641390,1706122361881,-500.0,0.00051232,31]
[312641391,1706122361891,-570.38,0.00051232,31]
[312641392,1706122361900,-500.0,0.00051232,31]
[312641393,1706122361910,-873.0,0.00051232,31]
[312641394,1706122361919,-506.74,0.00051232,31]
[312641395,1706122361929,-500.0,0.00051232,31]
[312641396,1706122361938,-500.0,0.00051232,31]
[312641397,1706122361949,-500.0,0.00051232,31]
[312641398,1706122361958,-500.0,0.00051232,10]
[312641399,1706122361968,-1425.52,0.00051232,31]
[312641400,1706122361978,-500.0,0.00051232,31]
[312641401,1706122361987,-500.0,0.00051232,31]
[312641402,1706122361997,-1000.0,0.00051232,7]
[312641403,1706122362007,-831.23,0.00051232,31]
[312641404,1706122362016,-642.97,0.00051232,31]
[312641405,1706122362026,-2093.79,0.00051232,31]
[312641406,1706122362035,-500.0,0.00051232,31]
[312641407,1706122362045,-500.0,0.00051232,31]
[312641408,1706122362054,-811.0,0.00051232,31]
[312641409,1706122362063,-500.0,0.00051232,31]
[312641410,1706122362074,-500.0,0.00051232,7]
[312641411,1706122362083,-545.73,0.00051232,31]
[312641412,1706122362093,-612.69,0.00051232,31]
[312641413,1706122362103,-574.43,0.00051232,31]
[312641414,1706122362113,-500.0,0.00051232,31]
[312641415,1706122362122,-514.67,0.00051232,31]
[312641416,1706122362132,-712.58,0.00051232,31]
[312641417,1706122362142,-622.52,0.00051232,31]
[312641418,1706122362150,-955.43,0.00051232,31]
[312641419,1706122362161,-500.0,0.00051232,31]
[312641420,1706122362171,-500.0,0.00051232,31]
[312641421,1706122362180,-591.58419675,0.00051232,31]
[312641422,1706122362190,-745.16,0.00051232,31]
[312641423,1706122362200,-726.38,0.00051232,31]
[312641424,1706122362210,-798.08,0.00051232,31]
[312641425,1706122362219,-500.0,0.00051232,31]
[312641426,1706122362228,-626.62,0.00051232,31]
[312641427,1706122362238,-865.11,0.00051232,31]
[312641428,1706122362248,-500.0,0.00051232,31]
[312641429,1706122362257,-500.0,0.00051232,31]
[312641430,1706122362267,-705.93,0.00051232,31]
[312641431,1706122362277,-1862.33,0.00051232,31]
[312641432,1706122362286,-500.0,0.00051232,31]
[312641433,1706122362299,-500.0,0.00051232,31]
[312641434,1706122362309,-510.67,0.00051232,31]
[312641435,1706122362320,-668.54,0.00051232,31]
[312641436,1706122362329,-500.0,0.00051232,31]
[312641437,1706122362340,-856.57,0.00051232,31]
[312641438,1706122362349,-500.0,0.00051232,31]
[312641439,1706122362359,-500.0,0.00051232,31]
[312641440,1706122362369,-662.93,0.00051232,31]
[312641441,1706122362381,-500.0,0.00051232,31]
[312641442,1706122362391,-500.0,0.00051232,31]
[312641443,1706122362401,-664.98,0.00051232,31]
[312641444,1706122362412,-500.0,0.00051232,31]
[312641445,1706122362421,-553.0,0.00051232,31]
[312641446,1706122362431,-601.77,0.00051232,31]
[312641447,1706122362440,-500.0,0.00051232,31]
[312641448,1706122362450,-526.72,0.00051232,31]
[312641449,1706122362460,-614.5,0.00051232,31]
[312641450,1706122362470,-500.0,0.00051232,31]
[312641451,1706122362480,-500.0,0.00051232,31]
[312641452,1706122362489,-620.25,0.00051232,31]
[312641453,1706122362499,-500.0,0.00051232,31]
[312641454,1706122362508,-812.44,0.00051232,31]
[312641455,1706122362518,-500.0,0.00051232,31]
[312641456,1706122362528,-500.0,0.00051232,31]
[312641457,1706122362538,-500.0,0.00051232,31]
[312641458,1706122362547,-794.73,0.00051232,31]
[312641459,1706122362557,-500.0,0.00051232,31]
[312641460,1706122362566,-645.52,0.00051232,31]
[312641461,1706122362576,-500.0,0.00051232,31]
[312641462,1706122362585,-666.76,0.00051232,31]
[312641463,1706122362595,-705.9,0.00051232,31]
[312641464,1706122362605,-1412.9,0.00051232,31]
[312641465,1706122362615,-764.01,0.00051232,31]
[312641466,1706122362624,-650.22,0.00051232,31]
[312641467,1706122362633,-500.0,0.00051232,31]
[312641468,1706122362643,-500.0,0.00051232,31]
[312641469,1706122362653,-743.33,0.00051232,31]
[312641470,1706122362663,-632.51,0.00051232,31]
[312641471,1706122362672,-1250.48,0.00051232,31]
[312641472,1706122362682,-500.0,0.00051232,31]
[312641473,1706122362692,-650.49,0.00051232,31]
[312641474,1706122362702,-500.0,0.00051232,31]
[312641475,1706122362712,-733.9,0.00051232,31]
[312641476,1706122362722,-350.34952655,0.00051232,31]
[312641477,1706122362732,-669.48,0.00051232,31]
[312641478,1706122362741,-500.0,0.00051232,31]
[312641479,1706122362751,-1269.11,0.00051232,2]
[312641480,1706122362761,-744.02,0.00051232,31]
[312641481,1706122362770,-533.98,0.00051232,31]
[312641482,1706122362780,-664.9,0.00051232,31]
[312641483,1706122362790,-500.0,0.00051232,31]
[312641484,1706122362799,-807.92,0.00051232,31]
[312641485,1706122362809,-500.0,0.00051232,31]
[312641486,1706122362818,-500.0,0.00051232,31]
[312641487,1706122362828,-553.89,0.00051232,31]
[312641488,1706122362837,-500.0,0.00051232,31]
[312641489,1706122362847,-678.22,0.00051232,31]
[312641490,1706122362857,-868.79,0.00051232,31]
[312641491,1706122362867,-500.0,0.00051232,31]
[312641492,1706122362876,-980.31,0.00051232,31]
[312641493,1706122362886,-540.29,0.00051232,31]
[312641494,1706122362896,-606.53,0.00051232,31]
[312641495,1706122362906,-500.0,0.00051232,31]
[312641496,1706122362916,-500.0,0.00051232,31]
[312641497,1706122362926,-590.42,0.00051232,31]
[312641498,1706122362935,-500.0,0.00051232,31]
[312641499,1706122362944,-1598.07,0.00051232,31]
[312641500,1706122362953,-526.85,0.00051232,31]
[312641501,1706122362962,-500.0,0.00051232,31]
[312641502,1706122362972,-1012.55,0.00051232,31]
[312641503,1706122362981,-822.56,0.00051232,31]
[312641504,1706122362991,-500.0,0.00051232,31]
[312641505,1706122363001,-2206.82,0.00051232,7]
[312641506,1706122363010,-500.0,0.00051232,31]
[312641507,1706122363019,-650.91,0.00051232,31]
[312641508,1706122363029,-1000.0,0.00051232,7]
[312641509,1706122363038,-500.0,0.00051232,31]
[312641510,1706122363047,-731.16,0.00051232,31]
[312641511,1706122363056,-500.0,0.00051232,31]
[312641512,1706122363065,-500.0,0.00051232,31]
[312641513,1706122363074,-500.0,0.00051232,31]
[312641514,1706122363083,-552.33,0.00051232,31]
[312641515,1706122363093,-508.81,0.00051232,31]
[312641516,1706122363102,-813.7,0.00051232,31]
[312641517,1706122363111,-733.58,0.00051232,31]
[312641518,1706122363123,-500.0,0.00051232,31]
[312641519,1706122363132,-509.4,0.00051232,31]
[312641520,1706122363141,-500.0,0.00051232,31]
[312641521,1706122363150,-500.0,0.00051232,31]
[312641522,1706122363160,-656.53,0.00051232,31]
[312641523,1706122363169,-748.28,0.00051232,31]